bitfinex-derivatives/quotes_BNBF0:USTF0_20250710
["timestamp","ask_amount","ask_price","bid_price","bid_amount"]
[1752165415369,1.65135179,671.33,670.37,2.18549532]
[1752165415573,1.65135179,671.34,670.35,2.18549532]
[1752165415869,1.65135179,671.33,670.35,2.18549532]
[1752165416569,1.65135179,671.34,670.35,2.18549532]
[1752165417776,1.65135179,671.34,670.34,2.18549532]
[1752165418372,1.65135179,671.35,670.35,2.18549532]
[1752165418674,1.65135179,671.42,670.42,2.18549532]
[1752165419278,1.65135179,671.42,670.41,2.18549532]
[1752165420079,1.65135179,671.43,670.4,2.18549532]
[1752165420280,1.65135179,671.42,670.4,2.18549532]
[1752165420783,1.66756189,671.41,670.41,2.18549532]
[1752165421378,1.66756189,671.42,670.4,2.18549532]
[1752165421577,1.66756189,671.4,670.39,2.18549532]
[1752165422480,1.66756189,671.38,670.36,2.18549532]
[1752165422677,1.66756189,671.38,670.37,2.18549532]
[1752165422982,1.66756189,671.36,670.41,2.18549532]
[1752165423282,1.66756189,671.34,670.39,2.18549532]
[1752165423778,1.66756189,671.32,670.37,2.18549532]
[1752165424282,3.30243146,671.64,670.21,3.26466411]
[1752165424579,0.25927292,671.84,670.12,1.682]
[1752165426485,1.66706815,671.45,670.5,2.20068807]
[1752165427282,1.66706815,671.45,670.51,2.20068807]
[1752165427488,1.66706815,671.45,670.49,2.20068807]
[1752165427682,1.66706815,671.46,670.49,2.20068807]
[1752165429283,1.66706815,671.56,670.58,2.20068807]
[1752165429987,1.66706815,671.55,670.6,2.20068807]
[1752165430283,1.66706815,671.56,670.58,2.20068807]
[1752165430984,1.66706815,671.56,670.12,1.682]
[1752165430985,1.66706815,671.57,670.6,2.20068807]
[1752165431184,1.66706815,671.57,670.58,2.20068807]
[1752165432291,1.66706815,671.58,670.56,2.20068807]
[1752165432891,1.66706815,671.56,670.6,2.20068807]
[1752165433293,1.66706815,671.57,670.59,2.20068807]
[1752165433491,1.66706815,671.57,670.55,2.20068807]
[1752165433994,1.66706815,671.57,670.56,2.20068807]
[1752165434194,1.66706815,671.57,670.55,2.20068807]
[1752165435196,2.22275754,671.72,670.55,2.20068807]
[1752165435396,1.66391837,671.58,670.54,2.20068807]
[1752165435596,1.66391837,671.58,670.53,2.20068807]
[1752165436192,1.66391837,671.59,670.53,2.20068807]
[1752165436496,1.66330653,671.59,670.53,2.20068807]
[1752165437294,1.66330653,671.59,670.54,2.20068807]
[1752165438195,1.66330653,671.59,670.53,2.20068807]
[1752165439099,1.66330653,671.59,670.54,2.20068807]
[1752165439299,1.66330653,671.6,670.53,2.20068807]
[1752165440296,1.66330653,671.6,670.52,2.20068807]
[1752165440800,1.66330653,671.59,670.53,2.20068807]
[1752165441297,1.66330653,671.6,670.53,2.20068807]
[1752165442501,1.66330653,671.6,670.52,2.20068807]
[1752165442701,1.66330653,671.62,670.48,2.20068807]
[1752165443003,1.66330653,671.61,670.5,2.20068807]
[1752165443601,1.66330653,671.67,670.56,2.20068807]
[1752165444298,1.66330653,671.67,670.54,2.20068807]
[1752165444799,1.66330653,671.67,670.55,2.20068807]
[1752165445098,1.66330653,671.69,670.5,2.20068807]
[1752165446899,1.66330653,671.69,670.51,2.278]
[1752165447404,1.66330653,671.7,670.51,2.278]
[1752165448601,1.26696961,671.86,670.52,2.20068807]
[1752165448602,1.66330653,671.72,670.52,2.20068807]
[1752165449205,1.66330653,671.73,670.51,2.278]
[1752165450104,1.66330653,671.72,670.53,2.20068807]
[1752165450305,1.66330653,671.71,670.57,2.20068807]
[1752165451205,1.66330653,671.78,670.64,2.20068807]
[1752165451706,1.66330653,671.81,670.58,2.20068807]
[1752165452506,1.66330653,671.81,670.51,2.278]
[1752165452507,1.66330653,671.8,670.59,2.20068807]
[1752165452705,1.66330653,671.85,670.64,2.20068807]
[1752165453608,1.66330653,671.79,670.58,2.20068807]
[1752165454303,1.66330653,671.79,670.57,2.20068807]
[1752165454502,1.66330653,671.79,670.58,2.20068807]
[1752165454702,1.66330653,671.79,670.57,2.20068807]
[1752165455107,1.66330653,671.79,670.58,2.20068807]
[1752165455308,1.66330653,671.79,670.56,2.20068807]
[1752165457609,1.66330653,671.79,670.58,2.20068807]
[1752165458209,1.66330653,671.79,670.59,2.20068807]
[1752165459306,1.66330653,671.78,670.59,2.20068807]
[1752165460010,1.66330653,671.78,670.51,2.278]
[1752165460011,1.66330653,671.77,670.63,2.20068807]
[1752165460211,1.66330653,671.77,670.62,2.20068807]
[1752165460412,1.66330653,671.77,670.63,2.20068807]
[1752165461310,1.66330653,671.76,670.64,2.20068807]
[1752165461613,1.66330653,671.76,670.66,2.20068807]
[1752165462412,1.66330653,671.76,670.67,2.20068807]
[1752165462809,1.66330653,671.67,670.58,2.20068807]
[1752165463212,1.66330653,671.66,670.58,2.20068807]
[1752165463413,1.66330653,671.67,670.6,2.20068807]
[1752165463610,1.66330653,671.67,670.59,2.20068807]
[1752165464215,1.66330653,671.67,670.6,2.20068807]
[1752165464414,1.66330653,671.66,670.62,2.20068807]
[1752165464914,1.66330653,671.68,670.56,2.20068807]
[1752165465211,1.66330653,671.68,670.58,2.20068807]
[1752165465514,1.66330653,671.67,670.59,2.20068807]
[1752165466816,1.66330653,671.67,670.6,2.20068807]
[1752165467112,1.66330653,671.66,670.6,2.20068807]
[1752165467316,1.66330653,671.66,670.61,2.20068807]
[1752165468311,1.66330653,671.66,670.62,2.20068807]
[1752165468717,1.66330653,671.67,670.6,2.20068807]
[1752165469412,1.66330653,671.66,670.6,2.20068807]
[1752165469918,1.66330653,671.67,670.58,2.20068807]
[1752165470918,1.66330653,671.68,670.56,2.20068807]
[1752165471419,1.66330653,671.7,670.51,2.278]
[1752165471815,1.66330653,671.7,670.51,4.47868807]
[1752165472419,1.66330653,671.69,670.54,2.20068807]
[1752165473015,1.66330653,671.69,670.53,2.20068807]
[1752165473318,1.66330653,671.69,670.54,2.20068807]
[1752165473615,1.66330653,671.69,670.51,2.278]
[1752165473616,1.66330653,671.72,670.57,2.20068807]
[1752165474417,1.66330653,671.72,670.51,2.278]
[1752165474418,1.66330653,671.72,670.58,2.20068807]
[1752165474716,1.66330653,671.74,670.51,4.47868807]
[1752165475221,1.66330653,671.74,670.52,2.20068807]
[1752165475721,1.66330653,671.83,670.61,2.20068807]
[1752165476321,1.66330653,671.83,670.62,2.20068807]
[1752165476521,1.66330653,671.82,670.63,2.20068807]
[1752165477316,1.66330653,671.82,670.64,2.20068807]
[1752165478224,1.66330653,671.81,670.65,2.20068807]
[1752165479722,1.66330653,671.82,670.66,2.20068807]
[1752165479922,1.66330653,671.82,670.67,2.20068807]
[1752165480424,1.66330653,671.8,670.72,2.20068807]
[1752165480920,1.66330653,671.8,670.73,2.20068807]
[1752165482425,1.66330653,671.8,670.74,2.20068807]
[1752165483120,1.66330653,671.73,670.91,2.20068807]
[1752165483426,1.66330653,671.69,670.89,2.20068807]
[1752165484225,1.66330653,671.69,670.91,2.20068807]
[1752165485226,1.66330653,671.68,670.93,2.20068807]
[1752165486229,1.66330653,671.67,670.93,2.20068807]
[1752165486625,1.66330653,671.7,670.86,2.20068807]
[1752165487126,1.66330653,671.71,670.84,2.20068807]
[1752165487329,1.66330653,671.71,670.85,2.20068807]
[1752165487533,1.66330653,671.72,670.82,2.20068807]
[1752165488031,1.66330653,671.71,670.81,2.20068807]
[1752165488231,1.66330653,671.71,670.82,2.20068807]
[1752165488532,1.66330653,671.7,670.83,2.20068807]
[1752165489130,1.66330653,671.7,670.82,2.20068807]
[1752165489429,1.66330653,671.69,670.83,2.20068807]
[1752165490133,1.66330653,671.7,670.81,2.20068807]
[1752165493430,1.66330653,671.71,670.83,2.20068807]
[1752165493731,1.66330653,671.71,670.82,2.20068807]
[1752165494232,1.66330653,671.71,670.83,2.20068807]
[1752165494733,1.66330653,671.71,670.82,2.20068807]
[1752165495232,1.66330653,671.7,670.84,2.20068807]
[1752165495436,1.66330653,671.69,670.86,2.20068807]
[1752165496036,1.66330653,671.7,670.85,2.20068807]
[1752165498237,1.66330653,671.7,670.86,2.20068807]
[1752165499038,1.66330653,671.68,670.88,2.20068807]
[1752165500235,1.66330653,671.68,670.89,2.20068807]
[1752165503236,1.66330653,671.68,670.9,2.20068807]
[1752165503439,1.66330653,671.73,670.9,1.614]
[1752165503939,1.66330653,671.72,670.9,1.614]
[1752165504136,1.66330653,671.88,670.9,1.614]
[1752165504339,1.66330653,671.86,670.9,1.614]
[1752165504936,1.66330653,671.85,670.9,1.614]
[1752165505139,1.66330653,671.86,670.9,1.614]
[1752165505339,1.66330653,671.81,670.9,1.614]
[1752165506143,1.66330653,671.82,670.9,1.614]
[1752165506342,1.66330653,671.81,670.9,1.614]
[1752165507240,1.66330653,671.83,670.9,1.614]
[1752165509941,1.66330653,671.8,670.9,1.614]
[1752165510244,1.66330653,671.79,670.9,1.614]
[1752165511242,1.66330653,671.8,670.9,1.614]
[1752165512544,1.66330653,671.79,670.9,1.614]
[1752165513548,1.66330653,671.83,670.9,1.614]
[1752165513749,1.66330653,671.82,670.9,3.81468807]
[1752165514246,1.66330653,671.83,670.9,3.81468807]
[1752165514649,1.66330653,671.8,670.9,1.614]
[1752165515351,1.66330653,671.75,670.98,2.20068807]
[1752165516047,1.66330653,671.75,671.0,2.20068807]
[1752165516251,1.66330653,671.74,671.02,2.20068807]
[1752165519055,1.66330653,671.74,671.03,1.706]
[1752165519855,1.66330653,671.73,671.03,3.90668807]
[1752165520855,1.66330653,671.75,671.03,1.706]
[1752165521552,1.66330653,671.82,671.03,1.706]
[1752165522355,1.66330653,671.84,671.03,1.706]
[1752165523257,1.66330653,671.83,671.03,1.706]
[1752165523457,1.66330653,671.84,671.03,1.706]
[1752165523757,1.66330653,671.83,671.03,1.706]
[1752165525960,1.66330653,671.82,671.03,1.706]
[1752165526158,1.66330653,671.83,671.03,1.706]
[1752165526357,1.66330653,671.82,671.03,1.706]
[1752165528960,2.22275754,672.02,671.03,1.706]
[1752165528961,1.66330653,671.85,671.03,1.706]
[1752165531262,1.66330653,671.84,671.03,1.706]
[1752165531461,1.66330653,671.83,671.03,1.706]
[1752165532160,1.66330653,671.82,671.03,1.706]
[1752165534366,1.66330653,671.81,671.03,1.706]
[1752165534563,1.66330653,671.8,671.03,1.706]
[1752165538973,1.67078805,671.76,671.03,1.706]
[1752165540374,1.67078805,671.77,671.03,1.706]
[1752165540971,1.67078805,671.79,671.03,1.706]
[1752165541276,1.67078805,671.77,671.03,3.90668807]
[1752165541676,1.67078805,671.78,671.03,3.90668807]
[1752165541874,1.67078805,671.95,671.03,1.706]
[1752165542074,1.67078805,671.99,671.03,3.90668807]
[1752165542276,1.67078805,672.0,671.03,1.706]
[1752165543379,1.67078805,672.01,671.03,1.706]
[1752165543574,1.67078805,671.97,671.03,1.706]
[1752165543878,1.67078805,671.98,671.03,1.706]
[1752165545076,1.67078805,671.97,671.03,1.706]
[1752165545279,1.67078805,671.98,671.03,1.706]
[1752165546381,1.67078805,671.99,671.03,1.706]
[1752165547585,1.67078805,671.97,671.03,1.706]
[1752165547778,1.67078805,671.95,671.07,2.20068807]
[1752165548277,1.67078805,671.95,671.06,2.20068807]
[1752165548977,1.67078805,671.95,671.08,2.20068807]
[1752165549383,1.67078805,671.95,671.07,2.20068807]
[1752165550081,0.25905193,672.37,671.12,2.20068807]
[1752165550082,1.67078805,671.93,671.12,2.20068807]
[1752165551385,1.67078805,671.94,671.12,2.20068807]
[1752165552084,1.67078805,672.01,671.03,1.706]
[1752165552286,1.67078805,672.02,671.03,1.706]
[1752165553483,1.67078805,672.07,671.03,1.706]
[1752165554383,1.67078805,672.08,671.03,1.706]
[1752165554587,1.67078805,672.07,671.03,1.706]
[1752165555387,1.67078805,672.08,671.03,1.706]
[1752165557089,1.67078805,672.08,670.96,2.20068807]
[1752165557291,1.67078805,672.09,670.95,2.20068807]
[1752165557491,1.67078805,672.08,670.96,2.20068807]
[1752165557787,1.67078805,672.08,670.97,2.20068807]
[1752165559090,1.67078805,672.07,670.97,2.20068807]
[1752165559592,1.67078805,672.07,670.98,2.183]
[1752165560296,1.67078805,672.06,671.0,2.20068807]
[1752165560695,1.67078805,672.03,671.07,2.20068807]
[1752165561195,1.67078805,672.02,671.07,2.20068807]
[1752165561391,1.67078805,672.03,671.06,2.20068807]
[1752165562096,1.67078805,672.03,671.07,2.20068807]
[1752165562395,0.25901337,672.45,671.02,2.20068807]
[1752165562396,1.67078805,672.0,671.02,2.20068807]
[1752165562591,1.67078805,671.99,671.02,2.20068807]
[1752165562796,1.67078805,671.99,671.03,2.20068807]
[1752165563298,2.22275754,672.15,671.04,2.20068807]
[1752165563499,1.66591823,672.02,671.06,2.20068807]
[1752165564098,1.66591823,672.0,671.1,2.20068807]
[1752165564398,1.66591823,672.0,671.09,2.20068807]
[1752165565906,1.66591823,671.99,671.11,2.20068807]
[1752165566899,1.66591823,672.03,671.03,2.20068807]
[1752165567799,1.66591823,672.12,670.98,2.183]
[1752165568705,1.66591823,672.09,670.98,2.183]
[1752165571512,1.66591823,672.05,670.98,2.183]
[1752165571808,1.66591823,672.11,670.98,2.183]
[1752165572308,1.66591823,672.1,670.98,4.38368807]
[1752165572611,1.66591823,672.1,670.98,2.183]
[1752165576213,1.66591823,672.1,670.98,4.38368807]
[1752165577312,1.66591823,672.09,670.99,2.20068807]
[1752165577511,1.66591823,672.09,670.98,4.38368807]
[1752165578008,1.66591823,672.09,670.99,2.20068807]
[1752165578214,1.66591823,672.09,671.0,2.20068807]
[1752165578417,1.66591823,672.11,670.99,2.20068807]
[1752165579113,1.66591823,672.13,670.98,2.183]
[1752165579717,1.66591823,672.12,670.98,2.183]
[1752165580514,1.66591823,672.12,670.96,2.20068807]
[1752165581216,1.66591823,672.11,670.98,2.20068807]
[1752165583119,1.66591823,672.11,670.99,2.20068807]
[1752165583718,1.66591823,672.17,671.05,2.20068807]
[1752165583919,1.66591823,672.14,671.01,2.20068807]
[1752165585019,1.66591823,672.13,671.02,2.20068807]
[1752165585416,1.66591823,672.13,671.03,2.20068807]
[1752165585722,1.66591823,672.13,671.02,2.20068807]
[1752165585920,1.66591823,672.13,671.03,2.20068807]
[1752165586621,1.66591823,672.13,671.0,1.64]
[1752165586622,1.66591823,672.12,671.05,2.20068807]
[1752165587018,1.66591823,672.07,671.18,2.20068807]
[1752165587220,1.66591823,672.06,671.17,2.20068807]
[1752165587417,1.66591823,672.06,671.18,2.20068807]
[1752165587918,1.66591823,672.05,671.17,2.20068807]
[1752165588223,1.66591823,672.04,671.17,2.20068807]
[1752165588423,1.66591823,672.0,671.13,2.20068807]
[1752165588720,1.66591823,671.99,671.16,2.20068807]
[1752165589321,1.66591823,671.98,671.16,2.20068807]
[1752165589723,1.66591823,671.93,671.11,2.20068807]
[1752165590923,1.66591823,671.94,671.09,2.20068807]
[1752165591120,1.66591823,671.93,671.1,2.20068807]
[1752165593224,1.66591823,671.92,671.11,2.20068807]
[1752165593419,1.66591823,671.92,671.1,2.20068807]
[1752165593621,1.66591823,671.85,671.03,2.20068807]
[1752165594122,1.66591823,671.84,671.04,2.20068807]
[1752165594324,1.66591823,671.85,671.04,2.20068807]
[1752165594923,1.66591823,671.84,671.05,2.20068807]
[1752165595326,1.66591823,671.87,671.0,1.64]
[1752165595525,1.66591823,671.88,671.0,1.64]
[1752165595728,1.66591823,671.9,671.0,1.64]
[1752165597324,1.66591823,671.82,671.13,2.20068807]
[1752165597527,1.66591823,671.82,671.12,2.20068807]
[1752165597724,1.66591823,671.82,671.13,2.20068807]
[1752165598429,1.66591823,671.83,671.1,2.20068807]
[1752165598630,1.66591823,671.84,671.09,2.20068807]
[1752165599130,1.66591823,671.83,671.1,2.20068807]
[1752165599431,1.66591823,671.83,671.09,2.20068807]
[1752165599628,1.66591823,671.88,671.14,2.20068807]
[1752165599829,1.66591823,671.88,671.13,2.20068807]
[1752165600027,1.66591823,671.88,671.12,2.20068807]
[1752165600534,1.66591823,671.93,671.16,2.20068807]
[1752165600934,1.66591823,671.94,671.17,2.20068807]
[1752165601535,1.66591823,671.93,671.18,2.20068807]
[1752165601937,1.66591823,671.97,671.21,2.20068807]
[1752165602431,1.66591823,671.97,671.2,2.20068807]
[1752165602831,1.66591823,671.96,671.22,2.20068807]
[1752165604238,1.66591823,671.97,671.2,2.20068807]
[1752165605438,1.66591823,671.98,671.2,2.20068807]
[1752165605742,1.66591823,672.05,671.13,1.996]
[1752165606439,1.66591823,672.06,671.13,1.996]
[1752165607739,1.66591823,672.07,671.13,1.996]
[1752165609540,1.66591823,672.08,671.13,1.996]
[1752165612742,1.66591823,672.03,671.13,1.996]
[1752165613545,1.66591823,672.02,671.13,1.996]
[1752165615048,1.66591823,672.01,671.13,1.996]
[1752165616344,1.66591823,672.0,671.13,1.996]
[1752165617746,1.66591823,671.99,671.13,1.996]
[1752165617951,1.66591823,671.98,671.13,4.19668807]
[1752165618448,1.66591823,671.99,671.13,4.19668807]
[1752165619249,1.66591823,671.97,671.17,2.20068807]
[1752165619452,1.66591823,671.95,671.23,2.20068807]
[1752165619652,1.66591823,671.95,671.22,2.20068807]
[1752165619953,2.22275754,672.08,671.22,2.20068807]
[1752165619954,1.66591823,671.94,671.22,2.20068807]
[1752165620252,1.66591823,671.94,671.23,2.20068807]
[1752165620448,1.66591823,671.93,671.25,2.20068807]
[1752165621254,1.66591823,671.95,671.2,2.20068807]
[1752165622055,1.66591823,671.96,671.2,2.20068807]
[1752165622450,1.66591823,671.95,671.22,2.20068807]
[1752165622948,1.66591823,671.94,671.21,2.20068807]
[1752165623653,1.66591823,672.01,671.28,2.20068807]
[1752165624049,1.66591823,672.02,671.25,2.20068807]
[1752165625755,1.66591823,672.03,671.25,2.20068807]
[1752165625953,1.66591823,672.03,671.26,2.20068807]
[1752165626151,1.66591823,672.03,671.25,2.20068807]
[1752165626357,1.66591823,672.04,671.27,2.438]
[1752165626556,1.66591823,672.03,671.27,2.438]
[1752165630652,1.66591823,672.02,671.27,4.63868807]
[1752165631659,1.66591823,672.02,671.27,2.438]
[1752165633354,1.66591823,672.0,671.29,2.20068807]
[1752165633758,1.66591823,671.94,671.27,2.438]
[1752165634758,1.66591823,671.95,671.27,2.438]
[1752165635953,1.66591823,671.94,671.27,2.438]
[1752165637253,1.66591823,671.95,671.27,2.438]
[1752165639660,1.66591823,671.96,671.27,2.438]
[1752165639861,1.66591823,672.01,671.27,2.438]
[1752165640060,1.66591823,672.02,671.27,2.438]
[1752165641258,1.66591823,672.09,671.27,2.438]
[1752165641458,1.66591823,672.07,671.27,2.438]
[1752165641662,1.66591823,672.05,671.27,2.438]
[1752165642362,1.66591823,671.96,671.27,2.438]
[1752165644865,1.66591823,671.95,671.27,2.438]
[1752165645266,1.66591823,672.08,671.34,2.20068807]
[1752165645463,1.66591823,672.08,671.32,2.20068807]
[1752165645864,1.66591823,672.06,671.29,2.20068807]
[1752165646368,1.66591823,672.05,671.31,2.20068807]
[1752165647873,1.66591823,672.05,671.27,2.438]
[1752165647874,1.66591823,672.06,671.32,2.20068807]
[1752165648969,1.66591823,672.08,671.27,4.63868807]
[1752165649173,1.66591823,672.09,671.27,2.438]
[1752165649977,1.66591823,672.01,671.27,2.438]
[1752165650275,2.22275754,672.16,671.27,2.438]
[1752165650276,1.66591823,672.0,671.27,2.438]
[1752165650475,1.66591823,672.01,671.16,2.20068807]
[1752165650676,1.66591823,672.03,671.12,2.20068807]
[1752165650877,1.66591823,672.04,671.11,2.20068807]
[1752165651277,0.25901337,672.45,670.44,0.25908182]
[1752165651278,1.66591823,672.02,671.09,2.20068807]
[1752165651474,1.66591823,672.01,671.09,2.20068807]
[1752165652277,1.66591823,672.01,671.1,2.20068807]
[1752165652878,1.66591823,672.0,671.09,2.20068807]
[1752165653177,1.66591823,672.0,671.1,2.20068807]
[1752165653574,1.66591823,672.0,671.11,2.635]
[1752165653877,1.66591823,672.03,671.11,2.635]
[1752165654079,0.25901337,672.45,671.11,2.635]
[1752165654080,1.66591823,672.02,671.11,2.635]
[1752165656274,1.66591823,672.01,671.11,2.635]
[1752165656975,2.22275754,672.21,671.11,2.635]
[1752165656976,1.66591823,672.13,671.11,2.635]
[1752165657380,1.66591823,672.08,671.11,2.635]
[1752165657581,1.66591823,672.09,671.11,2.635]
[1752165657881,1.66591823,672.06,671.11,2.635]
[1752165658378,1.66591823,672.05,671.11,2.635]
[1752165658882,1.66591823,672.04,671.11,2.635]
[1752165659476,1.66591823,671.97,671.11,2.635]
[1752165659882,1.66591823,672.0,671.11,2.635]
[1752165660079,1.66591823,672.04,671.11,2.635]
[1752165660584,1.66591823,672.03,671.11,2.635]
[1752165660879,1.66591823,672.02,671.11,2.635]
[1752165662884,1.66591823,671.99,671.13,2.20068807]
[1752165663686,1.66591823,672.01,671.15,2.20068807]
[1752165665084,1.66591823,671.98,671.21,2.20068807]
[1752165665585,1.66591823,671.95,671.28,2.20068807]
[1752165666781,1.66591823,671.96,671.26,2.20068807]
[1752165667283,1.66591823,671.95,671.28,2.20068807]
[1752165667582,1.66591823,671.95,671.29,2.20068807]
[1752165668983,1.66591823,671.95,671.28,2.20068807]
[1752165669288,1.66591823,671.95,671.27,2.20068807]
[1752165670383,1.66591823,671.95,671.28,2.20068807]
[1752165672888,1.66591823,671.99,671.19,2.20068807]
[1752165673187,1.66591823,672.0,671.21,2.20068807]
[1752165673583,1.66591823,672.03,671.22,2.20068807]
[1752165673787,2.22275754,672.21,670.44,0.25908182]
[1752165673788,1.66591823,672.02,671.23,2.20068807]
[1752165674683,1.66591823,672.02,671.24,1.906]
[1752165676287,1.66591823,672.02,671.24,4.10668807]
[1752165676490,1.66591823,672.03,671.24,1.906]
[1752165681300,1.66591823,672.04,671.24,1.906]
[1752165682701,1.66591823,672.01,671.25,2.20068807]
[1752165683101,2.22275754,672.17,671.26,2.20068807]
[1752165683300,1.67115419,672.01,671.26,2.20068807]
[1752165683498,1.67115419,672.02,671.26,2.20068807]
[1752165683697,1.67115419,671.99,671.24,1.906]
[1752165684297,0.25901337,672.45,671.26,2.20068807]
[1752165684298,1.67115419,671.98,671.26,2.20068807]
[1752165684703,1.67115419,672.0,671.26,2.20068807]
[1752165684904,1.67115419,672.0,671.29,2.20068807]
[1752165685503,1.67115419,672.01,671.29,2.20068807]
[1752165685803,1.67115419,672.01,671.28,2.20068807]
[1752165686403,1.67115419,672.0,671.31,2.20068807]
[1752165687502,1.67115419,672.0,671.32,2.20068807]
[1752165687703,1.67115419,671.99,671.31,2.20068807]
[1752165687899,2.22275754,672.13,671.24,1.906]
[1752165687900,1.67115419,672.03,671.24,1.906]
[1752165688099,1.67115419,672.02,671.24,1.906]
[1752165688899,1.67115419,671.96,671.24,1.906]
[1752165689404,1.67115419,671.97,671.24,1.906]
[1752165691003,3.33413631,672.33,671.24,1.906]
[1752165691204,0.25901337,672.45,671.24,1.906]
[1752165691501,1.67088267,671.92,671.24,1.906]
[1752165691901,1.67088267,671.88,671.24,1.906]
[1752165694411,1.67088267,671.89,671.24,1.906]
[1752165695210,1.67088267,671.88,671.24,1.906]
[1752165695411,1.67088267,671.87,671.24,1.906]
[1752165695608,2.22784356,671.99,671.24,1.906]
[1752165695806,1.67042413,671.85,671.24,1.906]
[1752165696507,1.67042413,671.83,671.24,1.906]
[1752165698111,1.67042413,671.84,671.24,1.906]
[1752165699011,1.67042413,671.87,671.24,1.906]
[1752165700719,3.34084827,672.17,671.24,1.906]
[1752165700916,1.66980853,671.88,671.24,1.906]
[1752165701409,1.66980853,671.89,671.24,1.906]
[1752165703114,1.66980853,671.88,671.24,1.906]
[1752165703616,1.66980853,671.93,671.24,1.906]
[1752165704412,1.66980853,671.92,671.24,1.906]
[1752165705813,3.33961706,672.22,671.24,1.906]
[1752165706014,1.66962128,671.92,671.24,1.906]
[1752165707313,1.66962128,671.89,671.24,1.906]
[1752165707913,1.66962128,671.9,671.24,1.906]
[1752165708619,1.66962128,671.91,671.2,2.20213116]
[1752165710415,1.66962128,671.9,671.22,2.20213116]
[1752165711115,1.66962128,671.9,671.21,2.20213116]
[1752165711519,1.66962128,671.91,671.19,2.20213116]
[1752165711719,1.66962128,671.94,671.13,2.20213116]
[1752165712318,1.66962128,671.94,671.14,1.941]
[1752165712921,1.66962128,671.93,671.14,1.941]
[1752165713422,1.66962128,671.94,671.14,1.941]
[1752165713721,1.66962128,671.92,671.14,1.941]
[1752165713922,1.66962128,671.94,671.14,1.941]
[1752165716126,1.66962128,671.95,671.14,1.941]
[1752165716522,1.66962128,671.94,671.14,1.941]
[1752165719123,1.66965256,671.94,671.14,1.941]
[1752165721228,1.66965256,671.95,671.14,1.941]
[1752165721724,1.66965256,672.0,671.14,1.941]
[1752165722325,0.25901337,672.45,671.17,2.20213116]
[1752165722326,1.66965256,671.97,671.17,2.20213116]
[1752165722626,1.66965256,671.92,671.14,1.941]
[1752165723732,1.66965256,672.0,671.21,2.20213116]
[1752165724832,2.22616171,672.15,671.21,2.20213116]
[1752165725129,1.66962711,672.0,671.21,2.20213116]
[1752165725328,1.66962575,671.99,671.21,2.20213116]
[1752165725732,1.66962575,671.99,671.2,2.20213116]
[1752165725929,1.66962575,671.99,671.22,2.20213116]
[1752165726233,1.66962575,671.99,671.21,2.20213116]
[1752165726628,1.66962575,671.99,671.14,1.941]
[1752165726629,1.66962575,671.96,671.28,2.20213116]
[1752165727633,1.66962575,672.01,671.33,2.20213116]
[1752165730435,1.66962575,672.01,671.32,2.20213116]
[1752165732733,2.22616171,672.14,671.14,1.941]
[1752165732734,1.66962575,672.02,671.3,2.20213116]
[1752165733039,1.66962575,672.02,671.29,2.20213116]
[1752165733334,1.66962575,672.15,671.14,1.941]
[1752165733638,1.66962575,672.05,671.14,1.941]
[1752165735539,1.66962575,672.04,671.14,1.941]
[1752165737038,1.66962575,672.0,671.14,1.941]
[1752165739240,1.27295552,672.25,671.14,1.941]
[1752165739443,1.66984967,671.9,671.14,1.941]
[1752165739638,1.66984967,671.9,671.16,2.20213116]
[1752165739841,1.66984967,671.9,671.14,1.941]
[1752165739842,1.66984967,671.9,671.14,4.14313116]
[1752165740439,1.66984967,671.9,671.15,2.20213116]
[1752165741744,1.66984967,671.89,671.19,2.20213116]
[1752165741942,1.66984967,671.88,671.19,2.20213116]
[1752165742744,1.66984967,671.89,671.17,2.20213116]
[1752165743841,1.66984967,671.94,671.19,2.20213116]
[1752165744440,1.66984967,671.94,671.2,2.20213116]
[1752165746347,2.22616171,672.09,671.2,2.20213116]
[1752165746548,1.67068025,671.93,671.21,2.20213116]
[1752165746846,1.67068025,671.95,671.15,2.20213116]
[1752165747145,1.67068025,671.96,671.15,2.20213116]
[1752165747346,1.67068025,671.95,671.15,2.20213116]
[1752165748447,1.67068025,671.94,671.16,2.20213116]
[1752165748648,1.67068025,671.94,671.17,2.20213116]
[1752165748943,1.67068025,671.93,671.17,2.20213116]
[1752165749148,1.67068025,671.94,671.16,2.20213116]
[1752165750546,1.67152643,671.94,671.16,2.20213116]
[1752165751249,1.67152643,671.93,671.16,2.20213116]
[1752165752250,1.67152643,671.93,671.17,2.495]
[1752165752647,1.67152643,671.93,671.17,4.69713116]
[1752165753447,2.22616171,672.1,671.17,4.69713116]